Cogmind - Beta 13 @@@ ROGUE MODE // 2024.04.19 @ 22:56:51 Player: emory Result: Destroyed by S-27 Virus with Autogun Performance ------------- Evolutions (0) 0 Regions Visited (3) 600 Robots Destroyed (38) 190 Value Destroyed (859) 859 Prototype IDs (0) 0 Alien Tech Used (0) 0 Bonus (41) 41 TOTAL SCORE: 1690 Bonus ------- High Alert Combat Kills 13 Follower Combat Kills 56 Friendly Fire -28 Cogmind --------- Core Integrity 0/250 Matter 78/300 Energy 187/200 System Corruption 11% Temperature Cool (64) Movement Rolling (150) Ox4 Location -7/Recycling Parts ------- > --- POWER (1) -------- Subdweller Power Source > --- PROPULSION (2) --- Subdweller Monowheel > --- UTILITY (2) ------ Huge Storage Unit Subdweller Optics > --- WEAPON (2) ------- Plasma Cannon > --- INVENTORY (25) --- Subdweller Power Source Subdweller Monowheel Scrap Engine Large Storage Unit Signal Interpreter Targeting Computer Targeting Computer ECM Suite ECM Suite ECM Suite Scrap Shield Hacking Suite Tractor Beam High-powered Tractor Beam Improved Trap Extractor (0/6) Riot Gun Subdweller Laser Subdweller Laser Subdweller Beam Cannon Subdweller Machine Gun Subdweller Shrapnel Launcher Missile Launcher Multitool Peak State ------------ > --- POWER ------------ Subdweller Power Source > --- PROPULSION ------- Subdweller Monowheel > --- UTILITY ---------- Huge Storage Unit Subdweller Optics > --- WEAPON ----------- Plasma Cannon Light Assault Rifle > --- INVENTORY -------- Subdweller Power Source Subdweller Monowheel Scrap Engine Large Storage Unit Signal Interpreter Targeting Computer Targeting Computer ECM Suite ECM Suite ECM Suite Scrap Shield Hacking Suite Tractor Beam High-powered Tractor Beam Improved Trap Extractor Riot Gun Subdweller Laser Subdweller Laser Subdweller Beam Cannon Subdweller Machine Gun Subdweller Shrapnel Launcher Missile Launcher Multitool [Rating: 17] Favorites ----------- Power Light Ion Engine Engine Light Ion Engine Propulsion Aluminum Leg Treads Light Treads Leg Aluminum Leg Wheel Wheel Utility Huge Storage Unit Device Subdweller Optics Storage Huge Storage Unit Processor Targeting Computer Protection Scrap Shield Weapon Light Assault Rifle Energy Gun Medium Laser Energy Cannon Subdweller Beam Cannon Ballistic Gun Light Assault Rifle Ballistic Cannon Light Cannon Launcher Grenade Launcher Special Weapon Multitool Build | -11 -10 -10 -7 ------- Run | Yrd Mat Sub Rec Slots Evolved . | . . . . Power . | . . . . Propulsion . | . . . . Utility . | . . . . Weapon . | . . . . Parts Attached 51 | 6 13 26 6 Power 4 | 1 1 1 1 Engine 4 | 1 1 1 1 Core . | . . . . Reactor . | . . . . Propulsion 16 | 2 2 12 . Treads 6 | 2 . 4 . Leg 4 | . . 4 . Wheel 6 | . 2 4 . Hover . | . . . . Flight . | . . . . Utility 16 | 1 4 10 1 Device 1 | . . . 1 Storage 9 | 1 2 6 . Processor 2 | . 2 . . Hackware . | . . . . Protection 4 | . . 4 . Artifact . | . . . . Weapon 15 | 2 6 3 4 Energy Gun 1 | 1 . . . Energy Cannon 2 | . . 1 1 Ballistic Gun 8 | 1 4 1 2 Ballistic Cannon 2 | . 2 . . Launcher 1 | . . 1 . Special Weapon 1 | . . . 1 Impact Weapon . | . . . . Slashing Weapon . | . . . . Piercing Weapon . | . . . . Special Melee Weapon . | . . . . Unidentified Prototypes . | . . . . Parts Lost 7 | . 2 4 1 Power 2 | . . 2 . Propulsion 2 | . 1 1 . Utility 1 | . 1 . . Weapon 2 | . . 1 1 Highest Loss Streak 1 | . 1 1 1 To Critical Strikes . | . . . . Average Slot Usage (%) 87 | . 93 86 72 Engine 13 | . 14 13 14 Treads 4 | . 7 4 . Leg 11 | . . 16 . Wheel 9 | . 17 6 14 Storage 13 | . 14 13 14 Processor 4 | . 11 3 . Energy Cannon 9 | . . 12 10 Ballistic Gun 17 | . 23 15 16 Naked Turns . | . . . . Heaviest Build 97 | 12 87 92 97 Greatest Support 40 | 40 40 40 20 Greatest Overweight (x) 10 | . 8 10 4 Average Overweight (x) 3 | . 3 3 4 Largest Inventory Capacity 25 | 8 25 25 25 Average Capacity 23 | 7 22 24 25 Most Carried 25 | 8 24 25 25 Average Carried 21 | 4 16 23 24 Final Capacity 25 | 8 25 25 25 Final Carried 25 | 6 22 24 25 Class Distribution -------------------- 85% | Mutant 14% | Scavenger-Mutant Dominant Class ---------------- Mutant | -10/Materials Mutant | -10/Subcaves Mutant | -7/Recycling Resources | -11 -10 -10 -7 ----------- Run | Yrd Mat Sub Rec Matter Collected 1355 | 242 461 568 84 Remotely . | . . . . Salvage Created 1443 | . 1021 270 152 Parts 76 | . 59 14 3 Haulers Intercepted 1 | . 1 . . Recyclers Shooed 5 | . 5 . . Parts Field Recycled . | . . . . Retrieved Matter . | . . . . Parts Self-Destructed 18 | . . 18 . Prevented . | . . . . Kills | -11 -10 -10 -7 ------- Run | Yrd Mat Sub Rec Combat Hostiles Destroyed 27 | . 20 6 1 Guns 20 | . 18 1 1 Cannons 5 | . 2 3 . AOE 1 | . . 1 . Classes Destroyed 10 | . 8 2 . Worker 1 | . 1 . . Builder 1 | . 1 . . Hauler 1 | . 1 . . Recycler 5 | . 4 . 1 Operator 1 | . 1 . . Watcher 2 | . 2 . . Swarmer 9 | . 9 . . Grunt 11 | . 11 . . Sentry 2 | . . 1 1 Subdweller 5 | . . 5 . Best Kill Streak 6 | . 6 1 1 Combat Bots Only 5 | . 5 1 1 Max Kills in Single Turn 2 | . 2 1 1 Gunslinging 1 | . 1 . . Exploded 1 | . . 1 . Melee . | . . . . Uniques/NPCs Destroyed . | . . . . Combat | -11 -10 -10 -7 -------- Run | Yrd Mat Sub Rec Hostile Shots Fired 165 | . 57 88 20 Missed 68 | . 13 46 9 Damage Taken 1218 | . 484 518 216 Core 256 | . 52 121 83 Absorbed by Shields . | . . . . Regen/Repaired (Parts) 78 | . 78 . . Core Remaining (%) 100 | 100 . . . Volleys Fired 127 | . 78 38 11 Largest 2 | . 2 2 2 Hottest 110 | . 70 100 110 Shots Fired 240 | . 147 75 18 Gun 195 | . 134 46 15 Cannon 44 | . 13 28 3 Launcher 1 | . . 1 . Special . | . . . . Kinetic 177 | . 116 46 15 Thermal 62 | . 31 28 3 Explosive 1 | . . 1 . Electromagnetic . | . . . . Robot Hit Streak 17 | . 15 10 17 Robot Miss Streak 4 | . 4 2 3 Penetration Max . | . . . . Secondary Targets 3 | . 3 . . Max Gunslinging Chain 1 | . 1 . . Shots Hit Robots 150 | . 100 37 13 Core Hits 61 | . 48 9 4 Critical Kills 1 | . . 1 . Critical Parts Destroyed 2 | . 2 . . Critical Strikes 5 | . 4 1 . Burn 2 | . 2 . . Meltdown 1 | . . 1 . Destroy 2 | . 2 . . Melee Attacks . | . . . . Impact . | . . . . Slashing . | . . . . Piercing . | . . . . Sneak Attacks . | . . . . Combat Hostiles . | . . . . Follow-up Attacks . | . . . . Damage Inflicted 2191 | . 1292 611 288 Guns 1455 | . 1094 179 182 Cannons 500 | . 85 335 80 Explosions 97 | . . 97 . Melee . | . . . . Ramming 139 | . 113 . 26 Kinetic 1212 | . 851 179 182 Thermal 743 | . 328 335 80 Explosive 97 | . . 97 . Electromagnetic . | . . . . Impact . | . . . . Slashing . | . . . . Piercing . | . . . . Highest Corruption 11 | . 11 11 11 Average Corruption 10 | . 8 11 11 Corruption Purged . | . . . . Corruption Blocked . | . . . . Effects 240 | . 26 204 10 Message Errors 61 | . 7 53 1 Matter Fused 75 | . 9 64 2 Heat Flow Errors 25 | . 1 23 1 Energy Discharges 28 | . 5 22 1 Parts Rejected 1 | . 1 . . Parts Fused 2 | . . 2 . Data Loss (minor) 19 | . 2 16 1 Data Loss (major) 9 | . . 8 1 Misfires 13 | . 1 10 2 Alerts 4 | . . 4 . Misdirections 1 | . . . 1 Weapon Failures 2 | . . 2 . Overload Shots . | . . . . Overflow Damage 26 | . 5 2 19 Projectiles 19 | . . . 19 Explosions 2 | . . 2 . Melee 5 | . 5 . . Knockbacks . | . . . . Impact . | . . . . Kinetic . | . . . . Secondary . | . . . . Self-Inflicted Damage 77 | . 50 15 12 Shots 1 | . . 1 . Rammed 15 | . 13 . 2 Targets Rammed 15 | . 13 . 2 Kicked . | . . . . Crushed . | . . . . Highest Temperature 259 | . 206 259 196 Average Temperature 59 | . 31 85 60 Received Heat Transfer 324 | . 156 156 12 Siege Activations . | . . . . Robots Corrupted . | . . . . Combat Hostiles . | . . . . Parts Fried . | . . . . Impact Corruptions 1 | . 1 . . Robots Melted 1 | . . 1 . Combat Hostiles 1 | . . 1 . Parts Melted 2 | . 2 . . Heat Transferred 1678 | . 1110 444 124 Parts Sabotaged . | . . . . Parts Stolen . | . . . . Parts Stripped . | . . . . Power Chain Reactions . | . . . . Alert | -11 -10 -10 -7 ------- Run | Yrd Mat Sub Rec Peak Influence 429 | . 328 . 429 Initial 348 | . . . 348 Average 164 | . 138 . 370 Maximum Alert Level 2 | . 1 . 2 Low Security (%) 70 | 100 80 . . Level 1 29 | . 19 . 96 Level 2 . | . . . 3 Level 3 . | . . . . Level 4 . | . . . . Level 5 . | . . . . High Security . | . . . . Max Security . | . . . . Squads Dispatched 5 | . 5 . . Investigation 2 | . 2 . . Extermination . | . . . . Reinforcement 3 | . 3 . . Assault . | . . . . Garrison . | . . . . Intercept . | . . . . Searches Triggered . | . . . . Construction Impeded . | . . . . Haulers Reinforced . | . . . . Active Scanning Responses . | . . . . Cargo Convoy Interrupts . | . . . . Stealth | -11 -10 -10 -7 --------- Run | Yrd Mat Sub Rec Distress Signals 1 | . 1 . . Communications Jammed . | . . . . Distress Signals . | . . . . Times Spotted 80 | . 39 37 4 Peak Tracking Total 5 | . 5 2 1 Tactical Retreats 3 | . 1 2 . Traps | -11 -10 -10 -7 ------- Run | Yrd Mat Sub Rec Traps Triggered 6 | . 6 . . Indirectly . | . . . . Trap Hack Attempts . | . . . . Triggered . | . . . . Disarmed . | . . . . Reprogrammed . | . . . . Reused . | . . . . Traps Extracted . | . . . . Installed . | . . . . Triggered . | . . . . Machines | -11 -10 -10 -7 ---------- Run | Yrd Mat Sub Rec Machines Disabled 1 | . . . 1 Max in Single Turn . | . . . . Machines Repaired . | . . . . Machines Dismantled . | . . . . Machines Sabotaged . | . . . . Overloaded Fab Kills . | . . . . Hacking | -11 -10 -10 -7 --------- Run | Yrd Mat Sub Rec Machines Accessed 7 | . 5 . 2 Terminals 6 | . 4 . 2 Fabricators . | . . . . Repair Stations 1 | . 1 . . Recycling Units . | . . . . Scanalyzers . | . . . . Garrison Access . | . . . . Total Hacks 17 | . 14 . 3 Successful 10 | . 8 . 2 Failed 7 | . 6 . 1 Catastrophic 1 | . . . 1 Database Lockouts . | . . . . Manual 9 | . 9 . . Terminals 12 | . 9 . 3 Fabricators . | . . . . Repair Stations 5 | . 5 . . Recycling Units . | . . . . Scanalyzers . | . . . . Garrison Access . | . . . . Terminal Hacks 2 | . . . 2 Robot Analysis 1 | . . . 1 Zone Layout 1 | . . . 1 Fabricator Hacks . | . . . . Repair Station Hacks 4 | . 4 . . Scan Component 2 | . 2 . . Repair 2 | . 2 . . Recycling Unit Hacks . | . . . . Scanalyzer . | . . . . Garrison Access Hacks . | . . . . Unauthorized Hacks 4 | . 4 . . Terminals 4 | . 4 . . Botnet 4 | . 4 . . Fabricators . | . . . . Repair Stations . | . . . . Recycling Units . | . . . . Scanalyzers . | . . . . Garrison Access . | . . . . Data Cores Recovered . | . . . . Used . | . . . . Hacking Detections 5 | . 4 . 1 Full Trace Events 1 | . 1 . . Feedback Events . | . . . . Feedback Blocked . | . . . . Robot Schematics Acquired . | . . . . Robots Built . | . . . . Authchips . | . . . . Time . | . . . . Total Robot Build Rating . | . . . . Part Schematics Acquired . | . . . . Parts Built . | . . . . Authchips . | . . . . Time . | . . . . Total Part Build Rating . | . . . . Parts Repaired 2 | . 2 . . Time 62 | . 62 . . Parts Recycled . | . . . . Recycled Matter . | . . . . Retrieved Matter . | . . . . Retrieved Components . | . . . . Parts Scanalyzed . | . . . . Part Schematics Acquired . | . . . . Parts Damaged . | . . . . Bothacking | -11 -10 -10 -7 ------------ Run | Yrd Mat Sub Rec Used RIF Installer . | . . . . Robots Hacked . | . . . . Non-combat . | . . . . Combat . | . . . . Robot Hacks Applied . | . . . . Relay Couplers Released . | . . . . Fabnet Peak Effective % . | . . . . Robots Rewired 5 | . . . 5 Allies Hacked . | . . . . Hacks Repelled . | . . . . Allies | -11 -10 -10 -7 -------- Run | Yrd Mat Sub Rec Total Allies 5 | . . . 5 Largest Group 3 | . . . 3 Highest-Rated Group 47 | . . . 47 Highest-Rated Ally 21 | . . . 21 Total Orders . | . . . . Ally Attacks 18 | . . . 18 Total Damage 292 | . . . 292 Kills 2 | . . . 2 Allies Corrupted . | . . . . Allies Melted . | . . . . Intel | -11 -10 -10 -7 ------- Run | Yrd Mat Sub Rec Robot Analysis Total 1 | . . . 1 Derelict Logs Recovered . | . . . . Drone Launches . | . . . . Drone Recoveries . | . . . . Exploration | -11 -10 -10 -7 ------------- Run | Yrd Mat Sub Rec Turns Passed 7853 | 94 1853 5593 313 Spaces Moved 3104 | 50 969 1959 126 Core 13 | 7 . 6 . Treads 511 | 43 209 259 . Legs 786 | . . 786 . Wheels 1794 | . 760 908 126 Hover . | . . . . Flight . | . . . . Fastest Speed 50 | 50 140 120 150 Average Speed 228 | 144 156 271 150 Slowest Speed 750 | 160 200 750 150 Overloaded Moves . | . . . . Propulsion Burnouts . | . . . . Robots Hopped . | . . . . Cave-ins Triggered . | . . . . Exploration Rate (%) 43 | 5 97 50 21 Regions Visited 3 Branch Regions 2 Pre-discovered Areas 1 | . . 1 . Known Exits Taken . | . . . . Unknown Exits Taken 3 | 1 1 1 . Scrap Searched 4 | . . 4 . Spaces Dug . | . . . . Terrain Destroyed 4 | . . 4 . Melee . | . . . . Projectile 2 | . . 2 . AOE 2 | . . 2 . Terrain Rammed . | . . . . Walls Destroyed . | . . . . Machines Disabled . | . . . . Actions | -11 -10 -10 -7 --------- Run | Yrd Mat Sub Rec Total 3651 | 72 1163 2182 234 Wait 118 | 5 64 49 . Move 3101 | 49 968 1958 126 Hop . | . . . . Pick Up 123 | 12 24 81 6 Fast Attach . | . . . . Attach 29 | 6 3 17 3 Detach 8 | . . 7 1 Swap 22 | . 10 9 3 Drop 27 | . 3 20 4 Fire 127 | . 78 38 11 Melee . | . . . . Ram 13 | . 11 . 2 Kick . | . . . . Crush 2 | . 2 . . Escape Stasis . | . . . . Rewire 78 | . . . 78 Trap . | . . . . Miscellaneous 3 | . . 3 . Route ------- -11/Scrapyard -10/Materials (discovered 5 exits: [*Mat x3] / [*Min] / [*Sub]) -10/Subcaves -7/Recycling History --------- Turn | Location | Event 3 | -11/Scrapyard | Discovered new exit (range 15) 95 | -11/Scrapyard | Entered Materials 317 | -10/Materials | Build established: Mutant 640 | -10/Materials | Discovered new exit (range 8) 1025 | -10/Materials | Discovered new exit (range 8) 1159 | -10/Materials | Discovered new exit (range 15) 1405 | -10/Materials | System corruption reached 10% 1610 | -10/Materials | Repaired Broken Lgt. Assault Rifle 1630 | -10/Materials | Discovered new exit (range 9) 1636 | -10/Materials | Repaired Assault Rifle? 1936 | -10/Materials | Discovered new exit (range 7) 1948 | -10/Materials | Entered Subcaves 2116 | -10/Subcaves | Core integrity fell below 50% 3169 | -10/Subcaves | A swath of the cavern ceiling suddenly collapsed 3562 | -10/Subcaves | Learned location of Zion (-7) 3562 | -10/Subcaves | Met a Zionite searching for "candidates" 3631 | -10/Subcaves | Build established: Scavenger-Mutant 4417 | -10/Subcaves | Shifting Twisted Machinery released Riot Gun 4593 | -10/Subcaves | Build established: Mutant 7228 | -10/Subcaves | A swath of the cavern ceiling suddenly collapsed 7510 | -10/Subcaves | Discovered new exit (range 10) 7541 | -10/Subcaves | Entered Recycling 7554 | -7/Recycling | Found Scrap Engine 7794 | -7/Recycling | Core integrity fell below 20% 7854 | -7/Recycling | Destroyed by S-27 Virus with Autogun Last Messages --------------- 07837_ Transporter 4a destroyed. 07837_ R-06 Scavenger collects Med. Storage Unit. 07839_ R-06 Scavenger collects Lgt. Treads. 07840_ Acquired Plasma Cannon. 07841_ Sub. Machine Gun shoots sparks and powers down. 07842_ R-06 Scavenger collects Ion Engine. 07842_ R-06 Scavenger collects Lgt. Treads. 07844_ System corrupted: FCS attempts to trigger Lgt. Assault Rifle. 07844_ System corrupted: Lgt. Assault Rifle misfires. 07845_ R-06 Scavenger collects Weight Redist. System. 07849_ Y-54 Guardian destroyed. 07852_ Destroyed Tractor Beam. 07852_ R-06 Scavenger destroyed. 07852_ R-06 Scavenger collects Lgt. Treads. 07852_ Lgt. Assault Rifle destroyed. Map ----- +----------------------------------------------------+ | ??????????? #?# # """"""" #?? | | ??????????? #?# # #?? | | ??????????? #?# ###########?? | | ??????????? #?# #???????????? | | ???????????+###+##### #???????????? | | ??????????? #???????????? | | ??????????? #???????????? | | ??????????? """ #???????????? | | ???????????#### """ ##?########## | | ???????????#??# """ T#?# % # | | ???????????#??# ##?# % # | | ???????????#??# #??#%= # | | ???????? ??#### """ #### # | | ????????? ?# % """ ""## # | | ?????????? # ""## = # | | ??????????/# T"## %& # | | ???????????+ % ""##% # | | ???????????# """ ""## = # | | ???????????# """ ####### ##+## | | ???????????# = """ | | ???????????+ !% | | ???????????# =%=%% | | ???????????###+#l################+##+## | | ???????????#?#[sr ! duga l#??# | | ???????????#?#% b !% h d#?## | | ?????????????#@ ! ulY !#?# | | ?????????????# i! %!Y #?## | | ?????????????##############??##### #### | | ??????????????????????????????????##??? | | ??????????????????????????????????????? | | | | | | | | | | | | | | | | | | | | | | | | | | | | | | | | | | | | | | | | | +----------------------------------------------------+ Best States ------------- Heat Dissipation 25 Energy Generation 15 Energy Capacity 200 Matter Stores 300 Matter Capacity 300 Sight Range 21 Terrain Scan Density 10 Armor Coverage 800 Evasion (%) 40 Targeting Accuracy 5 Recoil Reduction 2 Item Schematics ----------------- None Robot Schematics ------------------ None Fabricated ------------ Nothing Alien Tech Used ----------------- None Achievements -------------- A New Friend Challenges ------------ None Game ------ Seed HardlightHardlightClaw Manual? 0 Play Time 01:07:20 Cumulative 26.3 hours Start 2024.04.18 @ 21:38:50 End 2024.04.19 @ 22:56:51 Sessions 5 Manual Loads 0 Difficulty Rogue Special Mode None Game No. 43 Rogue 43 Adventurer 0 Explorer 0 Win Type - Total 0 Types 0/0/0/0/0/0/0/0/0 Lore% 22 Gallery% 22 Achievement% 20 Wizard Run 0 Options --------- Layout 2 ASCII 1 Keyboard 0 Movement Vi Keybinds 0 Fullscreen 1 Font 16/SmallcapsGlow Map View 50x44 Zoom Use 0% Tactical HUD 1 Map Filters NONE Filters NONE Steam SD RUN: 1319214b-ec6e-45e8-a28e-858007b0149a